lending/lending_fUSD_20240703
["ID","MTS","AMOUNT","RATE_DAILY","PERIOD"]
[331060603,1720045974275,-2175.39,0.00021917,4]
[331060604,1720045974290,-896.72,0.00021917,4]
[331060605,1720045974306,-500.0,0.00021917,4]
[331060606,1720045974320,-896.65,0.00021917,4]
[331060607,1720045974336,-980.72,0.00021917,4]
[331060608,1720045974350,-500.0,0.00021917,4]
[331060609,1720045974366,-500.0,0.00021917,4]
[331060610,1720045974381,-2175.39,0.00021917,4]
[331060611,1720045974396,-980.72,0.00021917,4]
[331060612,1720045974411,-896.65,0.00021917,4]
[331060613,1720045974425,-896.72,0.00021917,4]
[331060614,1720045974439,-988.73,0.00021917,4]
[331060615,1720045974455,-980.72,0.00021917,4]
[331060616,1720045974830,-2175.39,0.00021917,4]
[331060617,1720045974845,-896.72,0.00021917,4]
[331060618,1720045974854,-896.65,0.00021917,4]
[331060619,1720045974863,-980.72,0.00021917,4]
[331060620,1720045974873,-554.05,0.00021917,4]
[331060621,1720045974882,-896.72,0.00021917,4]
[331060622,1720045974892,-896.65,0.00021917,4]
[331060623,1720045974901,-980.72,0.00021917,4]
[331060624,1720045974911,-554.05,0.00021917,4]
[331060625,1720045974920,-896.72,0.00021917,4]
[331060626,1720045974930,-896.65,0.00021917,4]
[331060627,1720045974939,-2175.39,0.00021917,4]
[331060628,1720045974949,-980.72,0.00021917,4]
[331060629,1720045974959,-554.05,0.00021917,4]
[331060630,1720045974969,-896.72,0.00021917,4]
[331060631,1720045974978,-896.65,0.00021917,4]
[331060632,1720045974987,-2175.39,0.00021917,4]
[331060633,1720045974997,-980.72,0.00021917,4]
[331060634,1720045975006,-554.05,0.00021917,4]
[331060635,1720045975015,-896.82,0.00021917,4]
[331060636,1720045975025,-2175.39,0.00021917,4]
[331060637,1720045975035,-734.37,0.00021917,4]
[331060638,1720045975044,-896.72,0.00021917,4]
[331060639,1720045975053,-980.72,0.00021917,4]
[331060640,1720045975062,-500.0,0.00021917,4]
[331060641,1720045975071,-554.05,0.00021917,4]
[331060642,1720045975080,-2175.39,0.00021917,4]
[331060643,1720045975090,-896.72,0.00021917,4]
[331060644,1720045975100,-980.72,0.00021917,4]
[331060645,1720045975109,-554.05,0.00021917,4]
[331060646,1720045975118,-2175.39,0.00021917,4]
[331060647,1720045975127,-500.0,0.00021917,4]
[331060648,1720045975137,-988.73,0.00021917,4]
[331060649,1720045975146,-896.72,0.00021917,4]
[331060650,1720045975156,-734.37,0.00021917,4]
[331060651,1720045975166,-980.72,0.00021917,4]
[331060652,1720045975176,-554.05,0.00021917,4]
[331060653,1720045975185,-2175.39,0.00021917,4]
[331060654,1720045975195,-500.0,0.00021917,4]
[331060655,1720045975205,-896.72,0.00021917,4]
[331060656,1720045975215,-634.75357597,0.00021917,4]
[331060657,1720045975224,-980.72,0.00021917,4]
[331060658,1720045975234,-554.05,0.00021917,4]
[331060659,1720045975244,-2175.50260191,0.00021917,4]
[331060660,1720045975253,-734.37,0.00021917,4]
[331060661,1720045975264,-896.72,0.00021917,4]
[331060662,1720045975273,-500.0,0.00021917,4]
[331060663,1720045975283,-605.6896808,0.00021917,4]
[331060664,1720045980821,-375.0303192,0.00021917,4]
[331060665,1720045980831,-330.3696808,0.00021917,4]
[331060716,1720046213044,9570.0,0.00011199,2]
[331060717,1720046213070,11881.765406,0.00011199,2]
[331060721,1720046274417,3870.4753493,0.00011199,2]
[331060723,1720046281918,218.22798197,0.00011199,2]
[331060726,1720046321099,1857.99352185,0.00011199,2]
[331060729,1720046372397,2261.0,0.00025,60]
[331060730,1720046383251,161.89543696,0.00011199,2]
[331060737,1720046770490,517.70837826,0.00011199,2]
[331060738,1720046800040,1397.16,0.00025,60]
[331060747,1720046868423,2000.0,0.00025,60]
[331060752,1720047017729,294.35540424,0.00011199,2]
[331060758,1720047032482,-467.45,0.0001399,3]
[331060759,1720047032492,-96276.97313285,0.00014,2]
[331060761,1720047038389,-1414.94340752,0.00014,2]
[331060898,1720047040502,-424.14499985,0.00014,2]
[331060950,1720047043541,-630.74011,0.00014,2]
[331060960,1720047046339,-1387.61747925,0.00014,2]
[331060962,1720047046736,-2562.55454883,0.00014,2]
[331061304,1720047194946,604.63,0.00026,120]
[331061306,1720047458378,16260.71313967,0.00011199,2]
[331061307,1720047755906,10526.42252047,0.00011199,2]
[331061312,1720047991017,312.25192237,0.00011199,2]
[331061329,1720048061469,155.1707429,0.00011199,2]
[331061330,1720048127934,2629.73721,0.00011199,2]
[331061333,1720048232335,-365.22228258,0.00012314,2]
[331061335,1720048232346,-255.76771742,0.00013574,2]
[331061338,1720048232362,-242.51002419,0.00013574,2]
[331061339,1720048232373,-2899.6156235,0.00013899,2]
[331061340,1720048232387,-206.90651869,0.00013899,2]
[331061341,1720048232396,-14558.34994231,0.000139,2]
[331061342,1720048232598,-394.95499992,0.000139,2]
[331061345,1720048232611,-15083.71145777,0.000139,2]
[331061347,1720048232620,-2021.81566549,0.0001399,2]
[331061349,1720048232630,-4511.02050622,0.00014,2]
[331061364,1720048238511,-14091.57441306,0.00014,2]
[331061365,1720048238523,-4177.62585583,0.00014,2]
[331061366,1720048238536,-11362.50358504,0.00014,2]
[331061367,1720048238547,-600.22582988,0.00014,2]
[331061368,1720048240191,-1119.95985758,0.00014,2]
[331061369,1720048240541,-861.90375013,0.00014,2]
[331061370,1720048243722,-3147.72275675,0.00014,2]
[331061373,1720048246456,-431.8119,0.00014,2]
[331061374,1720048246467,-375.40665082,0.00014,2]
[331061383,1720048597199,2831.50727589,0.00011199,2]
[331061385,1720048732446,309.78043155,0.00025,60]
[331061427,1720049431757,-2746.4480408,0.00013416,2]
[331061428,1720049431767,-1380.40369576,0.00013472,2]
[331061429,1720049431778,-1068.74677521,0.00013472,2]
[331061430,1720049431788,-227.28835865,0.00013802,2]
[331061431,1720049431798,-440.06610721,0.00013835,2]
[331061432,1720049431811,-2822.17780073,0.00013849,2]
[331061433,1720049431821,-384.99357971,0.00013887,2]
[331061434,1720049431831,-625.64470959,0.00013889,2]
[331061435,1720049431841,-227.12084219,0.00013989,2]
[331061436,1720049431851,-271.36850184,0.00013999,2]
[331061437,1720049431862,-1000.0,0.00013999,2]
[331061438,1720049431872,-150.0,0.00013999,2]
[331061439,1720049431882,-15676.63218831,0.00014,2]
[331061440,1720049431896,-91425.6456059,0.00014,2]
[331061441,1720049431907,-2278.0529,0.00014,2]
[331061442,1720049431917,-299.99,0.00014966,2]
[331061443,1720049431928,-3867.59,0.00014966,2]
[331061444,1720049431939,-195.10413884,0.00014973,2]
[331061445,1720049431951,-161.05117831,0.00014973,2]
[331061446,1720049431963,-8202.05,0.00014999,2]
[331061447,1720049431974,-981.87,0.00014999,2]
[331061448,1720049431985,-167.79,0.00015272,2]
[331061449,1720049431996,-150.0,0.00017151,2]
[331061450,1720049432006,-489.02,0.00017604,2]
[331061451,1720049432015,-1000.0,0.00017958,2]
[331061452,1720049432025,-413.11002896,0.00018,2]
[331061453,1720049432035,-1250.0,0.00019,2]
[331061454,1720049432045,-2278.0529,0.00019,2]
[331061455,1720049432057,-504.03,0.00019027,3]
[331061456,1720049432068,-207.51,0.00019058,2]
[331061457,1720049432078,-250.0,0.00019083,2]
[331061458,1720049432087,-173.61,0.00019093,2]
[331061459,1720049432098,-713.94,0.00019123,2]
[331061460,1720049432109,-169.46,0.00019148,2]
[331061461,1720049432119,-272.78,0.00019303,2]
[331061462,1720049432128,-339.31808863,0.00019451,2]
[331061463,1720049432139,-2500.0,0.000195,2]
[331061464,1720049432149,-630.74011,0.00019726,2]
[331061465,1720049432159,-489.02,0.00019868,2]
[331061466,1720049432169,-180.98821489,0.00019964,2]
[331061467,1720049432178,-364.88974434,0.00019964,2]
[331061468,1720049432188,-550.6201206,0.0002,2]
[331061469,1720049432198,-250.0,0.0002,2]
[331061470,1720049432207,-867.82451069,0.0002,2]
[331061471,1720049432218,-11481.0,0.0002,5]
[331061472,1720049432229,-298.6083943,0.00020012,2]
[331061473,1720049432240,-691.6139,0.00020012,2]
[331061474,1720049432251,-596.315,0.00020112,2]
[331061475,1720049432263,-298.60839428,0.00020332,2]
[331061476,1720049432273,-158.93328085,0.00020464,2]
[331061477,1720049432282,-298.60839428,0.00020652,2]
[331061478,1720049432292,-158.93328084,0.00020767,2]
[331061479,1720049432302,-500.0,0.00020814,2]
[331061480,1720049432311,-298.60839428,0.00020971,2]
[331061481,1720049432321,-5000.0,0.00021,2]
[331061482,1720049432331,-250.0,0.00021,2]
[331061483,1720049432341,-5000.0,0.00021,2]
[331061484,1720049432351,-1300.0,0.00021,2]
[331061485,1720049432361,-220.92707536,0.00021,30]
[331061486,1720049432373,-10277.0,0.00021053,2]
[331061487,1720049432384,-158.93328084,0.00021071,2]
[331061488,1720049432395,-1000.0,0.00021107,2]
[331061489,1720049432406,-298.60839428,0.00021291,2]
[331061490,1720049432418,-150.0,0.00021342,2]
[331061491,1720049432429,-150.0,0.00021342,2]
[331061492,1720049432440,-150.0,0.00021342,2]
[331061493,1720049432451,-150.0,0.00021342,2]
[331061494,1720049432462,-150.0,0.00021342,2]
[331061495,1720049432472,-150.0,0.00021342,2]
[331061496,1720049432482,-150.0,0.00021342,2]
[331061497,1720049432492,-150.0,0.00021342,2]
[331061498,1720049432502,-300.0,0.00021342,2]
[331061499,1720049432512,-158.93328084,0.00021374,2]
[331061500,1720049432523,-180.0,0.00021397,2]
[331061501,1720049432534,-713.94,0.00021514,2]
[331061502,1720049432544,-19408.4168,0.00021544,2]
[331061503,1720049432554,-300.0,0.000216,7]
[331061504,1720049432564,-298.60839428,0.00021611,2]
[331061505,1720049432574,-436.11,0.00021644,2]
[331061506,1720049432584,-151.49,0.00021644,2]
[331061507,1720049432594,-297.96,0.00021644,2]
[331061508,1720049432605,-169.52,0.00021644,2]
[331061509,1720049432615,-158.93328084,0.00021677,2]
[331061510,1720049432626,-700.0,0.000217,7]
[331061511,1720049432635,-500.0,0.00021742,2]
[331061512,1720049432646,-1000.0,0.000218,7]
[331061513,1720049432656,-1897.0,0.000218,4]
[331061514,1720049432667,-1206.9525,0.00021817,2]
[331061515,1720049432676,-232.64112192,0.00021817,2]
[331061516,1720049432686,-322.6471014,0.00021817,2]
[331061517,1720049432696,-232.6411219,0.00021862,2]
[331061518,1720049432706,-500.0,0.00021873,2]
[331061519,1720049432716,-500.0,0.00021882,2]
[331061520,1720049432726,-1851.1058434,0.00021884,2]
[331061521,1720049432736,-500.0,0.0002189,2]
[331061522,1720049432746,-500.0,0.00021891,2]
[331061523,1720049432758,-716.63369653,0.00021893,2]
[331061524,1720049432777,-500.42978793,0.00021897,2]
[331061525,1720049432790,-167.1059815,0.00021898,2]
[331061526,1720049432802,-215.83609171,0.00021899,2]
[331061527,1720049432819,-3329.46741006,0.00021899,2]
[331061528,1720049432830,-500.0,0.00021899,2]
[331061529,1720049432841,-1400.0,0.000219,7]
[331061530,1720049432853,-1600.0,0.000219,4]
[331061531,1720049432864,-5800.0,0.000219,2]
[331061532,1720049432875,-2014.8,0.000219,2]
[331061533,1720049432885,-535.0,0.000219,4]
[331061534,1720049432899,-75000.0,0.000219,4]
[331061535,1720049432910,-1158.0,0.000219,9]
[331061536,1720049432920,-995.1,0.000219,2]
[331061537,1720049432930,-995.1,0.000219,2]
[331061538,1720049432941,-311.04,0.000219,2]
[331061539,1720049432952,-232.6411219,0.00021906,2]
[331061540,1720049432962,-183.47739009,0.00021907,2]
[331061541,1720049432972,-839.22872079,0.00021907,3]
[331061542,1720049432983,-500.0,0.00021908,2]
[331061543,1720049432994,-157.070407,0.00021916,4]
[331061544,1720049433004,-1585.23300841,0.00021916,2]
[331061545,1720049433015,-157.070407,0.00021916,4]
[331061546,1720049433025,-157.070407,0.00021916,4]
[331061547,1720049433035,-157.070407,0.00021916,4]
[331061548,1720049433045,-157.070407,0.00021916,4]
[331061549,1720049433056,-157.070407,0.00021916,4]
[331061550,1720049433066,-500.0,0.00021917,2]
[331061551,1720049433077,-291.93295235,0.00021917,2]
[331061552,1720049433087,-502.98870552,0.00021917,4]
[331061553,1720049433097,-633.13269683,0.00021917,4]
[331061554,1720049433107,-500.0,0.00021917,4]
[331061555,1720049433118,-539.16,0.00021917,4]
[331061556,1720049433128,-539.16,0.00021917,4]
[331061557,1720049433138,-539.16,0.00021917,4]
[331061558,1720049433148,-539.16,0.00021917,4]
[331061559,1720049433159,-539.16,0.00021917,4]
[331061560,1720049433169,-887.82,0.00021917,2]
[331061561,1720049433180,-785.31,0.00021917,4]
[331061562,1720049433190,-785.31,0.00021917,4]
[331061563,1720049433200,-785.31,0.00021917,4]
[331061564,1720049433212,-500.0,0.00021917,4]
[331061565,1720049433226,-500.0,0.00021917,4]
[331061566,1720049433652,-500.0,0.00021917,4]
[331061567,1720049433666,-500.0,0.00021917,4]
[331061568,1720049433676,-500.0,0.00021917,4]
[331061569,1720049433685,-500.0,0.00021917,4]
[331061570,1720049433695,-542.52,0.00021917,4]
[331061571,1720049433704,-500.0,0.00021917,4]
[331061572,1720049433714,-500.0,0.00021917,4]
[331061573,1720049433724,-500.0,0.00021917,4]
[331061574,1720049433734,-500.0,0.00021917,4]
[331061575,1720049433744,-500.0,0.00021917,4]
[331061576,1720049433754,-177.03314136,0.00021917,4]
[331061577,1720049433764,-500.0,0.00021917,4]
[331061578,1720049433774,-500.0,0.00021917,4]
[331061579,1720049433784,-500.0,0.00021917,4]
[331061580,1720049433793,-500.0,0.00021917,4]
[331061581,1720049433803,-596.09,0.00021917,4]
[331061582,1720049433815,-500.0,0.00021917,4]
[331061583,1720049433824,-500.0,0.00021917,4]
[331061584,1720049433834,-425.44,0.00021917,4]
[331061585,1720049433844,-611.36,0.00021917,4]
[331061586,1720049433855,-500.0,0.00021917,4]
[331061587,1720049433865,-171.67,0.00021917,4]
[331061588,1720049433875,-500.0,0.00021917,4]
[331061589,1720049433886,-504.65955623,0.00021917,4]
[331061590,1720049433896,-500.0,0.00021917,4]
[331061591,1720049433905,-500.0,0.00021917,4]
[331061592,1720049433915,-500.0,0.00021917,4]
[331061593,1720049433924,-500.0,0.00021917,4]
[331061594,1720049433934,-500.0,0.00021917,4]
[331061595,1720049433944,-500.0,0.00021917,4]
[331061596,1720049433954,-500.0,0.00021917,4]
[331061597,1720049433964,-500.0,0.00021917,4]
[331061598,1720049433974,-500.0,0.00021917,4]
[331061599,1720049433984,-500.0,0.00021917,4]
[331061600,1720049433995,-500.0,0.00021917,4]
[331061601,1720049434004,-500.0,0.00021917,4]
[331061602,1720049434014,-500.0,0.00021917,4]
[331061603,1720049434027,-500.0,0.00021917,4]
[331061604,1720049434038,-500.0,0.00021917,4]
[331061605,1720049434047,-500.0,0.00021917,4]
[331061606,1720049434058,-504.27832281,0.00021917,4]
[331061607,1720049434068,-500.0,0.00021917,4]
[331061608,1720049434078,-500.0,0.00021917,4]
[331061609,1720049434089,-500.0,0.00021917,4]
[331061610,1720049434099,-500.0,0.00021917,4]
[331061611,1720049434110,-500.0,0.00021917,4]
[331061612,1720049434120,-500.0,0.00021917,4]
[331061613,1720049434130,-510.90892203,0.00021917,4]
[331061614,1720049434140,-500.0,0.00021917,4]
[331061615,1720049434155,-500.0,0.00021917,4]
[331061616,1720049434164,-500.0,0.00021917,4]
[331061617,1720049434174,-500.0,0.00021917,4]
[331061618,1720049434184,-500.0,0.00021917,4]
[331061619,1720049434193,-500.0,0.00021917,4]
[331061620,1720049434203,-500.0,0.00021917,4]
[331061621,1720049434213,-500.0,0.00021917,4]
[331061622,1720049434222,-500.0,0.00021917,4]
[331061623,1720049434231,-500.0,0.00021917,4]
[331061624,1720049434241,-500.0,0.00021917,4]
[331061625,1720049434252,-500.0,0.00021917,4]
[331061626,1720049434262,-500.0,0.00021917,4]
[331061627,1720049434271,-500.0,0.00021917,4]
[331061628,1720049434281,-500.0,0.00021917,4]
[331061629,1720049434291,-500.0,0.00021917,4]
[331061630,1720049434300,-500.0,0.00021917,4]
[331061631,1720049434310,-500.0,0.00021917,4]
[331061632,1720049434320,-500.0,0.00021917,4]
[331061633,1720049434330,-500.0,0.00021917,4]
[331061634,1720049434340,-500.0,0.00021917,4]
[331061635,1720049434350,-500.0,0.00021917,4]
[331061636,1720049434360,-500.0,0.00021917,4]
[331061637,1720049434370,-500.0,0.00021917,4]
[331061638,1720049434380,-222.29,0.00021917,4]
[331061639,1720049434389,-886.19,0.00021917,4]
[331061640,1720049434398,-886.19,0.00021917,4]
[331061641,1720049434408,-886.19,0.00021917,4]
[331061642,1720049434418,-886.19,0.00021917,4]
[331061643,1720049434427,-886.19,0.00021917,4]
[331061644,1720049434437,-500.0,0.00021917,4]
[331061645,1720049434448,-500.0,0.00021917,4]
[331061646,1720049434457,-555.05,0.00021917,4]
[331061647,1720049434466,-500.0,0.00021917,4]
[331061648,1720049434476,-500.0,0.00021917,4]
[331061649,1720049434485,-500.0,0.00021917,4]
[331061650,1720049434495,-500.0,0.00021917,4]
[331061651,1720049434504,-500.0,0.00021917,4]
[331061652,1720049434514,-500.0,0.00021917,4]
[331061653,1720049434523,-500.0,0.00021917,4]
[331061654,1720049434533,-500.0,0.00021917,4]
[331061655,1720049434542,-500.0,0.00021917,4]
[331061656,1720049434551,-500.0,0.00021917,4]
[331061657,1720049434561,-500.0,0.00021917,4]
[331061658,1720049434571,-500.0,0.00021917,4]
[331061659,1720049434581,-500.0,0.00021917,4]
[331061660,1720049434591,-500.0,0.00021917,4]
[331061661,1720049434601,-500.0,0.00021917,4]
[331061662,1720049434611,-500.0,0.00021917,4]
[331061663,1720049434621,-777.25,0.00021917,4]
[331061664,1720049434630,-777.25,0.00021917,4]
[331061665,1720049434639,-777.25,0.00021917,4]
[331061666,1720049434649,-500.0,0.00021917,4]
[331061667,1720049434658,-500.0,0.00021917,4]
[331061668,1720049434668,-500.0,0.00021917,4]
[331061669,1720049434678,-500.0,0.00021917,4]
[331061670,1720049434687,-500.0,0.00021917,4]
[331061671,1720049434697,-949.24,0.00021917,4]
[331061672,1720049434718,-949.24,0.00021917,4]
[331061673,1720049434727,-949.24,0.00021917,4]
[331061674,1720049434737,-500.0,0.00021917,4]
[331061675,1720049434747,-500.0,0.00021917,4]
[331061676,1720049434761,-500.0,0.00021917,4]
[331061677,1720049434771,-500.0,0.00021917,4]
[331061678,1720049434781,-165.1,0.00021917,4]
[331061679,1720049434791,-1248.04,0.00021917,4]
[331061680,1720049434801,-1248.04,0.00021917,4]
[331061681,1720049434816,-1248.04,0.00021917,4]
[331061682,1720049434826,-500.0,0.00021917,4]
[331061683,1720049434836,-500.0,0.00021917,4]
[331061684,1720049434846,-500.0,0.00021917,4]
[331061685,1720049434858,-567.53,0.00021917,4]
[331061686,1720049434868,-567.53,0.00021917,4]
[331061687,1720049434879,-567.53,0.00021917,4]
[331061688,1720049434890,-809.27,0.00021917,4]
[331061689,1720049434900,-809.27,0.00021917,4]
[331061690,1720049434910,-809.27,0.00021917,4]
[331061691,1720049434920,-681.03,0.00021917,4]
[331061692,1720049434930,-681.03,0.00021917,4]
[331061693,1720049434940,-681.03,0.00021917,4]
[331061694,1720049434950,-1541.67,0.00021917,4]
[331061695,1720049434960,-1541.67,0.00021917,4]
[331061696,1720049434970,-1541.67,0.00021917,4]
[331061697,1720049434979,-1364.39,0.00021917,4]
[331061698,1720049434990,-1364.39,0.00021917,4]
[331061699,1720049434999,-1364.39,0.00021917,4]
[331061700,1720049435009,-1364.39,0.00021917,4]
[331061701,1720049435019,-1364.39,0.00021917,4]
[331061702,1720049435029,-291.11,0.00021917,4]
[331061703,1720049435039,-500.0,0.00021917,2]
[331061704,1720049435049,-500.0,0.00021917,2]
[331061705,1720049435060,-495.32316509,0.00021917,2]
[331061706,1720049435070,-500.0,0.00021917,4]
[331061707,1720049435080,-500.0,0.00021917,4]
[331061708,1720049435090,-500.0,0.00021917,4]
[331061709,1720049435100,-1302.99,0.00021917,4]
[331061710,1720049435110,-1302.99,0.00021917,4]
[331061711,1720049435121,-1302.99,0.00021917,4]
[331061712,1720049435131,-500.0,0.00021917,4]
[331061713,1720049435140,-500.0,0.00021917,4]
[331061714,1720049435150,-347.19300032,0.00021917,4]
[331061715,1720049435174,-152.80699968,0.00021917,4]
[331061716,1720049435183,-803.49,0.00021917,4]
[331061717,1720049435193,-115.02730369,0.00021917,4]
[331061718,1720049435206,-688.46269631,0.00021917,4]
[331061719,1720049435216,-141.12790606,0.00021917,4]
[331061720,1720049435228,-381.94876082,0.00021917,4]
[331061721,1720049435240,-280.41333312,0.00021917,4]
[331061722,1720049435250,-678.59,0.00021917,4]
[331061723,1720049435260,-678.59,0.00021917,4]
[331061724,1720049435270,-678.59,0.00021917,4]
[331061725,1720049435280,-651.0,0.00021917,4]
[331061726,1720049435290,-651.0,0.00021917,4]
[331061727,1720049435300,-651.0,0.00021917,4]
[331061728,1720049435310,-500.0,0.00021917,4]
[331061729,1720049435319,-500.0,0.00021917,4]
[331061730,1720049435330,-500.0,0.00021917,4]
[331061731,1720049435340,-592.5,0.00021917,4]
[331061732,1720049435350,-592.5,0.00021917,4]
[331061733,1720049435361,-592.5,0.00021917,4]
[331061734,1720049435371,-341.08,0.00021917,4]
[331061735,1720049435382,-500.0,0.00021917,4]
[331061736,1720049435392,-500.0,0.00021917,4]
[331061737,1720049435403,-500.0,0.00021917,4]
[331061738,1720049435413,-500.0,0.00021917,4]
[331061739,1720049435423,-500.0,0.00021917,4]
[331061740,1720049435433,-500.0,0.00021917,4]
[331061741,1720049435443,-500.0,0.00021917,4]
[331061742,1720049435454,-500.0,0.00021917,4]
[331061743,1720049435464,-500.0,0.00021917,4]
[331061744,1720049435474,-500.0,0.00021917,4]
[331061745,1720049435484,-524.82,0.00021917,4]
[331061746,1720049435494,-524.82,0.00021917,4]
[331061747,1720049435504,-524.82,0.00021917,4]
[331061748,1720049435514,-500.0,0.00021917,4]
[331061749,1720049435524,-500.0,0.00021917,4]
[331061750,1720049435534,-500.0,0.00021917,4]
[331061751,1720049435545,-500.0,0.00021917,4]
[331061752,1720049435556,-500.0,0.00021917,4]
[331061753,1720049435567,-267.82,0.00021917,4]
[331061754,1720049435577,-500.0,0.00021917,4]
[331061755,1720049435587,-500.0,0.00021917,4]
[331061756,1720049435597,-242.54296779,0.00021917,4]
[331061757,1720049435608,-500.0,0.00021917,4]
[331061758,1720049435619,-500.0,0.00021917,4]
[331061759,1720049435629,-1612.44,0.00021917,4]
[331061760,1720049435641,-500.0,0.00021917,4]
[331061761,1720049435651,-500.0,0.00021917,4]
[331061762,1720049435661,-500.0,0.00021917,4]
[331061763,1720049435672,-500.0,0.00021917,4]
[331061764,1720049435682,-1612.44,0.00021917,4]
[331061765,1720049435692,-606.99,0.00021917,4]
[331061766,1720049435702,-1612.44,0.00021917,4]
[331061767,1720049435713,-606.99,0.00021917,4]
[331061768,1720049435724,-1612.44,0.00021917,4]
[331061769,1720049435733,-606.99,0.00021917,4]
[331061770,1720049435743,-1612.44,0.00021917,4]
[331061771,1720049435755,-606.99,0.00021917,4]
[331061772,1720049435765,-606.99,0.00021917,4]
[331061773,1720049435775,-606.99,0.00021917,4]
[331061774,1720049435785,-673.81,0.00021917,4]
[331061775,1720049435795,-673.81,0.00021917,4]
[331061776,1720049435806,-673.81,0.00021917,4]
[331061777,1720049435820,-474.58408131,0.00021917,4]
[331061778,1720049435830,-500.0,0.00021917,4]
[331061779,1720049435840,-500.0,0.00021917,4]
[331061780,1720049435852,-500.0,0.00021917,4]
[331061781,1720049435863,-500.0,0.00021917,4]
[331061782,1720049435872,-500.0,0.00021917,4]
[331061783,1720049435882,-1479.88,0.00021917,4]
[331061784,1720049435894,-1479.88,0.00021917,4]
[331061785,1720049435906,-1479.88,0.00021917,4]
[331061786,1720049435917,-1479.88,0.00021917,4]
[331061787,1720049435927,-1479.88,0.00021917,4]
[331061788,1720049435937,-554.44,0.00021917,4]
[331061789,1720049435947,-554.44,0.00021917,4]
[331061790,1720049435957,-554.44,0.00021917,4]
[331061791,1720049435967,-500.0,0.00021917,4]
[331061792,1720049435976,-500.0,0.00021917,4]
[331061793,1720049435986,-500.0,0.00021917,4]
[331061794,1720049435996,-500.0,0.00021917,4]
[331061795,1720049436006,-500.0,0.00021917,4]
[331061796,1720049436016,-500.0,0.00021917,4]
[331061797,1720049436025,-398.27,0.00021917,4]
[331061798,1720049436035,-500.0,0.00021917,4]
[331061799,1720049436044,-500.0,0.00021917,4]
[331061800,1720049436054,-500.0,0.00021917,4]
[331061801,1720049436064,-500.0,0.00021917,4]
[331061802,1720049436074,-500.0,0.00021917,4]
[331061803,1720049436084,-500.0,0.00021917,4]
[331061804,1720049436094,-727.98,0.00021917,4]
[331061805,1720049436103,-727.98,0.00021917,4]
[331061806,1720049436114,-727.98,0.00021917,4]
[331061807,1720049436124,-500.0,0.00021917,4]
[331061808,1720049436133,-500.0,0.00021917,4]
[331061809,1720049436143,-500.0,0.00021917,4]
[331061810,1720049436153,-500.0,0.00021917,4]
[331061811,1720049436163,-1925.71,0.00021917,4]
[331061812,1720049436172,-500.0,0.00021917,4]
[331061813,1720049436182,-500.0,0.00021917,4]
[331061814,1720049436193,-1925.71,0.00021917,4]
[331061815,1720049436203,-1925.71,0.00021917,4]
[331061816,1720049436214,-956.8,0.00021917,4]
[331061817,1720049436223,-956.8,0.00021917,4]
[331061818,1720049436233,-956.8,0.00021917,4]